Cogmind - Beta 17.1 @@@ ROGUE MODE // 2026.09.02 @ 02:52:05 Player: Somberlain Result: Destroyed by H-66 Slayer with Gauss Rifle Performance ------------- Evolutions (4) 2000 Regions Visited (8) 1600 Robots Destroyed (79) 395 Value Destroyed (2921) 2921 Prototype IDs (7) 140 Alien Tech Used (0) 0 Bonus (2162) 2162 TOTAL SCORE: 9218 Bonus ------- Pacifist 200 Follower Combat Kills 786 Entered Garrisons 200 Used RIF Installer 500 Entered DSFs 500 Friendly Fire -24 Cogmind --------- Core Integrity 0/850 Matter 266/300 Energy 75/100 System Corruption 10% Temperature Cool (0) Movement Core (50) Location -6/Factory Parts ------- > --- POWER (2) -------- (None) > --- PROPULSION (3) --- (None) > --- UTILITY (7) ------ Improved Trap Scanner Target Analyzer > --- WEAPON (3) ------- (None) > --- INVENTORY (5) ---- Relay Coupler [Swarmer] (41) Relay Coupler [Grunt] (32) Relay Coupler [Duelist] (41) Relay Coupler [Sentry] (26) Remote Datajack Peak State ------------ > --- POWER ------------ F-cell Engine Light Fission Core > --- PROPULSION ------- Flexi-carbon Leg Flexi-carbon Leg Flexi-carbon Leg > --- UTILITY ---------- Advanced Heat Sink Large Storage Unit Improved Trap Scanner Target Analyzer Relay Coupler [Grunt] Relay Coupler [Sentry] Relay Coupler [Heavy] > --- WEAPON ----------- Coil Gun Improved Heavy Machine Gun Advanced Assault Cannon > --- INVENTORY -------- Flexi-carbon Leg Flexi-carbon Leg Flexi-carbon Leg Layered Light Armor Plating Authchip [Propulsion] Authchip [Device] Authchip [Processor] Relay Coupler [Swarmer] Relay Coupler [Cutter] Relay Coupler [Grunt] Relay Coupler [Grunt] Relay Coupler [Duelist] Relay Coupler [Sentry] Precision Rocket Launcher Hammer [Rating: 73] Favorites ----------- Power Improved Ion Engine Engine Improved Ion Engine Power Core Light Fission Core Propulsion Aluminum Leg Treads Light Treads Leg Aluminum Leg Utility Heat Sink Device Heat Sink Storage Large Storage Unit Processor Target Analyzer Hackware Relay Coupler [Grunt] Protection Light Armor Plating Weapon Spread Laser Energy Gun Spread Laser Energy Cannon Advanced Beam Cannon Ballistic Gun Assault Rifle Ballistic Cannon Advanced Assault Cannon Launcher Precision Rocket Launcher Special Weapon Remote Datajack Impact Weapon Hammer Build | -11 -10 -9 -9 -9 -9 -7 -7 -6 ------- Run | Yrd Mat Mat Sto Gar Rec Fac DSF Fac Slots Evolved 8 | . . 2 . . . 4 . 2 Power 1 | . . . . . . 1 . . Propulsion 1 | . . . . . . 1 . . Utility 5 | . . 2 . . . 2 . 1 Weapon 1 | . . . . . . . . 1 Parts Attached 85 | 6 1 10 19 12 . 2 11 24 Power 11 | 1 . 2 3 1 . . 1 3 Engine 9 | 1 . 2 3 1 . . 1 1 Core 2 | . . . . . . . . 2 Reactor . | . . . . . . . . . Propulsion 24 | 2 . 2 5 5 . . 6 4 Treads 2 | . . . . 2 . . . . Leg 22 | 2 . 2 5 3 . . 6 4 Wheel . | . . . . . . . . . Hover . | . . . . . . . . . Flight . | . . . . . . . . . Utility 20 | 1 1 4 2 5 . 1 2 4 Device 9 | . 1 2 1 2 . . 1 2 Storage 3 | 1 . 1 . 1 . . . . Processor 1 | . . . . 1 . . . . Hackware 3 | . . . . . . 1 1 1 Protection 4 | . . 1 1 1 . . . 1 Artifact . | . . . . . . . . . Weapon 30 | 2 . 2 9 1 . 1 2 13 Energy Gun 17 | . . 1 6 1 . . . 9 Energy Cannon 1 | . . . 1 . . . . . Ballistic Gun 5 | 2 . 1 . . . . . 2 Ballistic Cannon 2 | . . . . . . . 2 . Launcher 1 | . . . 1 . . . . . Special Weapon 2 | . . . . . . 1 . 1 Impact Weapon 2 | . . . 1 . . . . 1 Slashing Weapon . | . . . . . . . . . Piercing Weapon . | . . . . . . . . . Special Melee Weapon . | . . . . . . . . . Unidentified Prototypes 7 | . . 1 5 . . . . 1 Corrupted Parts 2 | . . . . 1 . . . 1 System Corruption 2 | . . . . 1 . . . 1 Parts Lost 30 | . . 3 1 6 . . 2 18 Power 5 | . . 1 . . . . . 4 Propulsion 5 | . . 1 . 1 . . 1 2 Utility 10 | . . . 1 4 . . . 5 Weapon 10 | . . 1 . 1 . . 1 7 Highest Loss Streak 10 | . . 1 1 3 . . 1 10 To Critical Strikes 1 | . . 1 . . . . . . Average Backups 10 | . . 2 7 10 15 14 14 14 Power . | . . . . 1 1 1 . . Propulsion . | . . . . . . . 1 2 Utility 6 | . . . 3 7 11 10 10 10 Weapon 1 | . . . 2 1 2 2 1 2 Tool/Special . | . . . . . . . . . Unused Backups 11 | . . . . 1 . . 1 9 Power . | . . . . . . . . . Propulsion . | . . . . . . . . . Utility 11 | . . . . 1 . . 1 9 Weapon . | . . . . . . . . . Tool/Special . | . . . . . . . . . Average Slot Usage (%) 94 | . 92 90 98 95 100 69 89 90 Engine 9 | . 14 10 11 11 11 7 8 6 Core 1 | . . . . . . . . 4 Treads 1 | . . . . 4 . . . . Leg 20 | . 28 21 22 17 22 15 21 19 Device 18 | . 7 22 20 19 22 15 15 12 Storage 9 | . 14 11 11 10 11 7 7 5 Processor 4 | . . . . 5 11 7 7 6 Hackware 3 | . . . . . . . 12 14 Protection 4 | . . 2 11 5 . . . . Energy Gun 14 | . . 1 18 20 22 15 7 9 Ballistic Gun 3 | . 28 19 2 . . . . 2 Ballistic Cannon 1 | . . . . . . . 1 4 Peak Build Rating 73 | 6 7 13 18 21 20 27 59 73 Average Rating 27 | 4 6 9 14 18 20 21 45 64 On Entrance 18 | . 6 7 11 16 20 20 27 59 Avg Prop Armor Cover (%) 5 | . . . . 7 . . . 5 Naked Turns . | . . . . . . . . . Heaviest Build 62 | 14 15 23 25 35 35 35 58 62 Greatest Support 60 | 20 20 20 23 40 20 20 60 60 Greatest Overweight (x) 3 | . . 1 1 3 1 1 3 1 Average Overweight (x) . | . . . . . 1 1 . . Largest Inventory Capacity 15 | 8 8 10 8 15 15 15 15 15 Average Capacity 11 | 7 8 8 8 11 15 15 15 14 Most Carried 15 | . 1 6 8 15 15 15 15 15 Average Carried 10 | . . 2 7 10 15 14 14 14 Final Capacity 15 | 8 8 8 8 15 15 15 15 5 Final Carried 15 | . 1 5 8 15 15 14 15 5 Class Distribution -------------------- 50% | Mutant 19% | Bothacker-Mutant 15% | Scavenger-Mutant 8% | Gunner 5% | Bothacker-Gunner Dominant Class ---------------- Mutant | -10/Materials Mutant | -9/Materials Mutant | -9/Storage Mutant | -9/Garrison Bothacker-Mutant | -9/Recycling Bothacker-Mutant | -7/Factory Bothacker-Mutant | -7/DSF Gunner | -6/Factory Resources | -11 -10 -9 -9 -9 -9 -7 -7 -6 ----------- Run | Yrd Mat Mat Sto Gar Rec Fac DSF Fac Matter Collected 2315 | 240 . 379 341 276 . . 348 731 Remotely . | . . . . . . . . . Salvage Created 2906 | . . 573 197 421 . . 241 1474 Parts 180 | . . 52 15 24 6 . 11 72 Haulers Intercepted . | . . . . . . . . . Recyclers Shooed 1 | . . . . . . . . 1 Parts Field Recycled . | . . . . . . . . . Retrieved Matter . | . . . . . . . . . Parts Self-Destructed . | . . . . . . . . . Prevented . | . . . . . . . . . Parts Restored . | . . . . . . . . . Kills | -11 -10 -9 -9 -9 -9 -7 -7 -6 ------- Run | Yrd Mat Mat Sto Gar Rec Fac DSF Fac Combat Hostiles Destroyed 59 | . . 15 3 11 . . 7 23 Guns 32 | . . 15 2 7 . . . 8 Cannons 10 | . . . . . . . 1 9 AOE 14 | . . . 1 4 . . 6 3 Classes Destroyed 12 | . . 6 1 2 . . . 3 Worker 4 | . . 1 . . . . . 3 Builder 8 | . . 2 . . 1 . . 5 Recycler 2 | . . . . . . . . 2 Operator 1 | . . . 1 . . . . . Watcher 5 | . . 1 2 . . . . 2 Swarmer 15 | . . 7 . . . . 3 5 Grunt 19 | . . 5 2 4 . . 4 4 Protector 1 | . . . . . . . . 1 Sentry 11 | . . 3 1 3 . . . 4 Specialist 2 | . . . . . . . . 2 Hunter 5 | . . . . 2 . . . 3 Programmer 6 | . . . . 2 . . . 4 Best Kill Streak 9 | . . 9 2 3 1 . 4 3 Combat Bots Only 7 | . . 7 1 3 . . 4 3 Max Kills in Single Turn 4 | . . 2 1 2 1 . 4 3 Gunslinging . | . . . . . . . . . Exploded 4 | . . . 1 2 . . 4 3 Melee . | . . . . . . . . . Uniques/NPCs Destroyed . | . . . . . . . . . Combat | -11 -10 -9 -9 -9 -9 -7 -7 -6 -------- Run | Yrd Mat Mat Sto Gar Rec Fac DSF Fac Hostile Shots Fired 590 | . . 124 28 76 . . 25 337 Missed 202 | . . 46 4 23 . . 8 121 Hits 388 | . . 78 24 53 . . 17 216 Melee 1 | . . . . . . . . 1 Projectile 387 | . . 78 24 53 . . 17 215 Critical Strikes 9 | . . 1 1 4 . . 1 2 Part Disruptions 1 | . . . . . . . . 1 Damage Taken 5615 | . . 814 428 830 130 . 360 3053 Core 1356 | . . 104 31 192 52 . 115 862 Absorbed by Shields 86 | . . . . 86 . . . . Regen/Repaired (Parts) 60 | . . . 60 . . . . . Core Remaining (%) 72 | 100 100 . . . 5 . 83 . Volleys Fired 198 | . . 48 16 30 . . 19 85 Largest 3 | . . 2 2 2 . . 2 3 Hottest 180 | . . 63 110 110 . . 83 180 Shots Fired 412 | . . 91 32 49 1 . 21 218 Gun 326 | . . 91 32 45 1 . . 157 Cannon 74 | . . . . . . . 15 59 Launcher 10 | . . . . 4 . . 4 2 Special 2 | . . . . . . . 2 . Kinetic 182 | . . 87 7 . . . 15 73 Thermal 42 | . . 4 11 26 1 . . . Explosive 10 | . . . . 4 . . 4 2 Electromagnetic 176 | . . . 14 19 . . . 143 Robot Hit Streak 11 | . . 11 6 9 1 . 5 11 Robot Miss Streak 5 | . . 5 3 5 2 . 3 5 Penetration Max 1 | . . . . . . . . 1 Secondary Targets 5 | . . 4 . 1 . . . . Max Gunslinging Chain 1 | . . 1 . 1 . . . . Shots Hit Robots 252 | . . 56 20 37 1 . 12 126 Core Hits 160 | . . 26 12 39 2 . 10 71 Critical Kills 2 | . . 1 . . . . . 1 Critical Parts Destroyed 3 | . . . . . . . . 3 Critical Strikes 17 | . . 1 . . . . 2 14 Destroy 2 | . . 1 . . . . . 1 Blast 3 | . . . . . . . 2 1 Corrupt 9 | . . . . . . . . 9 Smash 3 | . . . . . . . . 3 Melee Attacks 15 | . . . 6 . . . . 9 Impact 15 | . . . 6 . . . . 9 Slashing . | . . . . . . . . . Piercing . | . . . . . . . . . Sneak Attacks 7 | . . . . . . . . 7 Combat Hostiles . | . . . . . . . . . Follow-up Attacks . | . . . . . . . . . Damage Inflicted 6849 | . . 789 350 982 83 . 978 3667 Guns 3009 | . . 785 299 560 . . . 1365 Cannons 1031 | . . . . . . . 214 817 Explosions 2405 | . . . 49 422 73 . 764 1097 Melee 348 | . . . . . . . . 348 Ramming 56 | . . 4 2 . 10 . . 40 Kinetic 2143 | . . 754 104 . . . 214 1071 Thermal 620 | . . 31 147 342 . . . 100 Explosive 2256 | . . . . 422 73 . 764 997 Electromagnetic 1426 | . . . 97 218 . . . 1111 Impact 348 | . . . . . . . . 348 Slashing . | . . . . . . . . . Piercing . | . . . . . . . . . Highest Corruption 10 | . . . 1 4 4 . . 10 Average Corruption 2 | . . . 1 2 4 . . 3 Corruption Purged . | . . . . . . . . . Corruption Blocked . | . . . . . . . . . Effects 54 | . . . 11 20 16 . . 7 Message Errors 13 | . . . 4 5 3 . . 1 Matter Fused 13 | . . . 3 6 2 . . 2 Heat Flow Errors 6 | . . . 2 1 2 . . 1 Energy Discharges 8 | . . . 1 3 4 . . . Parts Fused 2 | . . . . 2 . . . . Data Loss (minor) 5 | . . . 1 2 2 . . . Data Loss (major) 3 | . . . . 1 2 . . . Misfires 2 | . . . . . 1 . . 1 Misdirections 1 | . . . . . . . . 1 Weapon Failures 1 | . . . . . . . . 1 Overload Shots . | . . . . . . . . . Overflow Damage 209 | . . . . 22 . . . 187 Projectiles 18 | . . . . . . . . 18 Explosions 23 | . . . . 22 . . . 1 Melee 168 | . . . . . . . . 168 Knockbacks 12 | . . . . . . . 2 10 Impact 4 | . . . . . . . . 4 Kinetic 8 | . . . . . . . 2 6 Secondary . | . . . . . . . . . Self-Inflicted Damage 351 | . . . 48 138 132 . . 33 Shots 5 | . . . 1 1 2 . . 1 Rammed . | . . . . . . . . . Targets Rammed 16 | . . 2 1 . 4 . . 9 Kicked 16 | . . 2 1 . 4 . . 9 Crushed . | . . . . . . . . . Highest Temperature 532 | . . . 225 422 235 . . 532 Average Temperature 150 | . . . 38 158 113 . . 170 Received Heat Transfer 794 | . . 195 144 107 . . 108 240 Effects 23 | . . . . 5 . . . 18 Shutdowns 3 | . . . . 1 . . . 2 Energy Bleed 6 | . . . . 1 . . . 5 Interference 10 | . . . . 1 . . . 9 Matter Decay 1 | . . . . . . . . 1 Damage (minor) 3 | . . . . 2 . . . 1 Siege Activations . | . . . . . . . . . Martial Activations . | . . . . . . . . . Shielding Activations . | . . . . . . . . . Robots Disrupted 1 | . . . 1 . . . . . Combat Hostiles 1 | . . . 1 . . . . . Robots Corrupted 7 | . . . . . . . . 7 Combat Hostiles 3 | . . . . . . . . 3 Parts Fried 22 | . . . 1 . . . . 21 Impact Corruptions 8 | . . . . . . . . 8 Robots Melted . | . . . . . . . . . Combat Hostiles . | . . . . . . . . . Parts Melted . | . . . . . . . . . Heat Transferred 830 | . . 75 275 380 . . . 100 Parts Sabotaged 3 | . . . . . . . . 3 Parts Stolen . | . . . . . . . . . Parts Stripped . | . . . . . . . . . Power Chain Reactions 3 | . . . 1 . . . . 2 Alert | -11 -10 -9 -9 -9 -9 -7 -7 -6 ------- Run | Yrd Mat Mat Sto Gar Rec Fac DSF Fac Maximum Alert Level 3 | . . . . 3 2 . 1 1 Low Security (%) 51 | 100 100 100 100 26 1 100 83 16 Level 1 39 | . . . . 43 86 . 16 83 Level 2 4 | . . . . 12 11 . . . Level 3 4 | . . . . 18 . . . . Level 4 . | . . . . . . . . . Level 5 . | . . . . . . . . . High Security . | . . . . . . . . . Max Security . | . . . . . . . . . Sterilizations 1 | . . . . . . . 1 . Peak Influence 958 | . . 140 80 958 430 82 381 378 Initial 430 | . . . 24 3 430 82 57 199 Average 204 | . . 38 16 382 308 82 169 268 Influence Increases 2898 | . . 415 218 1035 77 . 384 769 Destroy 0b10 Robot/C 1640 | . . 300 60 580 20 . 240 440 Destroy 0b10 Robot/NC 115 | . . 20 15 . 5 . 10 65 Destroy Leader 300 | . . 72 24 10 . . 40 154 Allied During Kill 178 | . . . . 147 3 . 28 . Successful Hack 57 | . . 8 9 28 . . . 12 Disable Machine 165 | . . . 45 30 30 . 15 45 Anti-Garrison Action 150 | . . . . 150 . . . . Destroy Structure 158 | . . . 5 60 19 . 36 38 Lose Combat Pursuer 135 | . . 15 60 30 . . 15 15 Influence Decreases 2604 | . . 358 270 82 838 115 85 856 Entered New Map 885 | . . . 33 2 528 115 25 182 Time Decay 1227 | . . 206 237 . 310 . . 474 Lost Part 290 | . . 30 . 60 . . 20 180 Lost Ally 80 | . . . . 20 . . 40 20 Purge Threat 122 | . . 122 . . . . . . Squads Dispatched 15 | . . 2 4 . . . 1 8 Investigation 1 | . . . . . . . . 1 Extermination 3 | . . . . . . . . 3 Reinforcement 5 | . . 2 1 . . . 1 1 Assault . | . . . . . . . . . Garrison 6 | . . . 3 . . . . 3 Intercept . | . . . . . . . . . Searches Triggered . | . . . . . . . . . Construction Impeded 1 | . . . . . . . . 1 Haulers Reinforced . | . . . . . . . . . Active Scanning Responses . | . . . . . . . . . Cargo Convoy Interrupts 1 | . . . . . . . . 1 Stealth | -11 -10 -9 -9 -9 -9 -7 -7 -6 --------- Run | Yrd Mat Mat Sto Gar Rec Fac DSF Fac Distress Signals 3 | . . 3 . . . . . . Communications Jammed . | . . . . . . . . . Distress Signals . | . . . . . . . . . Times Spotted 132 | . . 20 37 26 . . 14 35 Peak Tracking Total 12 | . . 6 5 3 . . 7 12 Tactical Retreats 5 | . . 1 1 1 . . 1 1 Traps | -11 -10 -9 -9 -9 -9 -7 -7 -6 ------- Run | Yrd Mat Mat Sto Gar Rec Fac DSF Fac Traps Triggered 9 | . . . . 7 . . 2 . Indirectly . | . . . . . . . . . Trap Hack Attempts . | . . . . . . . . . Triggered . | . . . . . . . . . Disarmed . | . . . . . . . . . Reprogrammed . | . . . . . . . . . Reused . | . . . . . . . . . Traps Extracted . | . . . . . . . . . Installed . | . . . . . . . . . Triggered . | . . . . . . . . . Machines | -11 -10 -9 -9 -9 -9 -7 -7 -6 ---------- Run | Yrd Mat Mat Sto Gar Rec Fac DSF Fac Machines Disabled 13 | . . . 3 4 2 . 1 3 Max in Single Turn 2 | . . . 1 2 2 . 1 1 Phase Generator 1 | . . . . 1 . . . . Machines Repaired . | . . . . . . . . . Machines Dismantled . | . . . . . . . . . Machines Sabotaged . | . . . . . . . . . Overloaded Fab Kills . | . . . . . . . . . Hacking | -11 -10 -9 -9 -9 -9 -7 -7 -6 --------- Run | Yrd Mat Mat Sto Gar Rec Fac DSF Fac Machines Accessed 22 | . 1 2 9 3 3 1 . 3 Terminals 17 | . 1 2 5 3 3 1 . 2 Fabricators . | . . . . . . . . . Repair Stations 2 | . . . 1 . . . . 1 Recycling Units 2 | . . . 2 . . . . . Scanalyzers . | . . . . . . . . . Garrison Access 1 | . . . 1 . . . . . Total Hacks 44 | . 2 3 19 6 6 1 . 7 Successful 16 | . 1 3 7 3 . 1 . 1 Failed 28 | . 1 . 12 3 6 . . 6 Catastrophic 6 | . . . 1 . 2 . . 3 Database Lockouts . | . . . . . . . . . Manual 17 | . 2 3 7 . 2 . . 3 Terminals 30 | . 2 3 8 6 6 1 . 4 Fabricators . | . . . . . . . . . Repair Stations 7 | . . . 4 . . . . 3 Recycling Units 4 | . . . 4 . . . . . Scanalyzers . | . . . . . . . . . Garrison Access 3 | . . . 3 . . . . . Terminal Hacks 11 | . 1 3 3 3 . 1 . . Open Door 4 | . . . 2 2 . . . . Open DSF 1 | . . . . . . 1 . . Branch Access Points 1 | . . 1 . . . . . . Emergency Access Points 1 | . . . . 1 . . . . Unreport Threat 3 | . . 2 1 . . . . . Registered Components 1 | . 1 . . . . . . . Fabricator Hacks . | . . . . . . . . . Repair Station Hacks 3 | . . . 2 . . . . 1 Scan Component 2 | . . . 1 . . . . 1 Repair 1 | . . . 1 . . . . . Recycling Unit Hacks 1 | . . . 1 . . . . . Retrieve Components 1 | . . . 1 . . . . . Scanalyzer . | . . . . . . . . . Garrison Access Hacks 1 | . . . 1 . . . . . Unlock Access 1 | . . . 1 . . . . . Unauthorized Hacks . | . . . . . . . . . Terminals . | . . . . . . . . . Fabricators . | . . . . . . . . . Repair Stations . | . . . . . . . . . Recycling Units . | . . . . . . . . . Scanalyzers . | . . . . . . . . . Garrison Access . | . . . . . . . . . Data Cores Recovered 1 | . . . 1 . . . . . Used . | . . . . . . . . . Hacking Detections 19 | . 1 . 9 2 3 1 . 3 Full Trace Events 2 | . . . 1 . . . . 1 Feedback Events 1 | . . . 1 . . . . . Corruption 1 | . . . 1 . . . . . Feedback Blocked . | . . . . . . . . . Robot Schematics Acquired . | . . . . . . . . . Robots Built . | . . . . . . . . . Authchips . | . . . . . . . . . Time . | . . . . . . . . . Total Robot Build Rating . | . . . . . . . . . Part Schematics Acquired . | . . . . . . . . . Parts Built . | . . . . . . . . . Authchips . | . . . . . . . . . Time . | . . . . . . . . . Total Part Build Rating . | . . . . . . . . . Part Studies Acquired . | . . . . . . . . . Parts Repaired 1 | . . . 1 . . . . . Time 26 | . . . 26 . . . . . Parts Recycled . | . . . . . . . . . Recycled Matter . | . . . . . . . . . Retrieved Matter . | . . . . . . . . . Retrieved Components . | . . . . . . . . . Parts Scanalyzed . | . . . . . . . . . Part Schematics Acquired . | . . . . . . . . . Parts Damaged . | . . . . . . . . . Bothacking | -11 -10 -9 -9 -9 -9 -7 -7 -6 ------------ Run | Yrd Mat Mat Sto Gar Rec Fac DSF Fac Used RIF Installer 1 | . . . . 1 . . . . Robots Hacked 1 | . . . . . . . 1 . Non-combat . | . . . . . . . . . Combat 1 | . . . . . . . 1 . Robot Hacks Applied 1 | . . . . . . . 1 . formatsys_high 1 | . . . . . . . 1 . Relay Couplers Released . | . . . . . . . . . Attached 3 | . . . . . . 1 1 1 Fabnet Peak Effective % . | . . . . . . . . . Robots Rewired 2 | . . . . 2 . . . . Allies Hacked 1 | . . . . 1 . . . . Hacks Repelled . | . . . . . . . . . Allies | -11 -10 -9 -9 -9 -9 -7 -7 -6 -------- Run | Yrd Mat Mat Sto Gar Rec Fac DSF Fac Total Allies 5 | . . . . 4 . . 1 . Largest Group 3 | . . . . 3 2 2 3 1 Highest-Rated Group 248 | . . . . 248 70 70 160 39 Highest-Rated Ally 178 | . . . . 178 39 39 90 39 Total Orders 2 | . . . . . . . 2 . STAY 1 | . . . . . . . 1 . FOLLOW 1 | . . . . . . . 1 . Ally Attacks 84 | . . . . 55 1 . 27 1 Total Damage 1949 | . . . . 1249 31 . 657 12 Kills 24 | . . . . 18 1 . 5 . Allies Corrupted . | . . . . . . . . . Allies Melted . | . . . . . . . . . Intel | -11 -10 -9 -9 -9 -9 -7 -7 -6 ------- Run | Yrd Mat Mat Sto Gar Rec Fac DSF Fac Active Infowar (turns) 4606 | . . 131 1153 1464 690 7 340 821 Sensors 1390 | . . . 1153 237 . . . . Traps 707 | . . . . . . . . 707 Seismic 2509 | . . 131 . 1227 690 7 340 114 Robot Analysis Total . | . . . . . . . . . Derelict Logs Recovered . | . . . . . . . . . Drone Launches . | . . . . . . . . . Drone Recoveries . | . . . . . . . . . Exploration | -11 -10 -9 -9 -9 -9 -7 -7 -6 ------------- Run | Yrd Mat Mat Sto Gar Rec Fac DSF Fac Turns Passed 5889 | 65 129 575 1414 1464 690 7 340 1205 Spaces Moved 3328 | 41 106 305 870 821 360 3 208 614 Core 10 | 4 . . . . . . . 6 Treads 149 | . . . . 149 . . . . Legs 3169 | 37 106 305 870 672 360 3 208 608 Wheels . | . . . . . . . . . Hover . | . . . . . . . . . Flight . | . . . . . . . . . Fastest Speed 50 | 50 120 120 120 120 190 190 120 50 Average Speed 139 | 113 120 131 130 148 190 190 127 123 Slowest Speed 330 | 120 120 190 190 330 190 190 330 190 Overloaded Moves . | . . . . . . . . . Propulsion Burnouts . | . . . . . . . . . Robots Hopped . | . . . . . . . . . Potential Cave-ins . | . . . . . . . . . Cave-ins Triggered . | . . . . . . . . . Exploration Rate (%) 52 | 3 31 27 86 78 90 . 93 14 Regions Visited 8 Branch Regions 2 Pre-discovered Areas 1 | . . . 1 . . . . . Known Exits Taken 3 | . . 1 1 . . 1 . . Unknown Exits Taken 3 | 1 1 . . . 1 . . . Scrap Searched . | . . . . . . . . . Spaces Dug 3 | . . . 1 . . . . 2 Terrain Destroyed 171 | . . . 4 79 16 . 38 34 Melee 3 | . . . 1 . . . . 2 Projectile 9 | . . . . . . . 1 8 AOE 159 | . . . 3 79 16 . 37 24 Terrain Rammed . | . . . . . . . . . Walls Destroyed . | . . . . . . . . . Machines Disabled . | . . . . . . . . . Actions | -11 -10 -9 -9 -9 -9 -7 -7 -6 --------- Run | Yrd Mat Mat Sto Gar Rec Fac DSF Fac Total 4156 | 56 107 382 1106 1015 363 4 262 861 Wait 334 | 10 . 9 159 77 . . 1 78 Move 3320 | 40 105 304 869 820 359 2 207 614 Hop . | . . . . . . . . . Pick Up 43 | . 1 3 12 16 . . 6 5 Fast Attach 35 | 6 1 6 4 4 . . 3 11 Attach 20 | . . 1 2 2 . 1 4 10 Detach 8 | . . 1 1 . . . 1 5 Swap 63 | . . 4 22 12 . 1 9 15 Drop 51 | . . 4 14 6 . . 7 20 Fire 198 | . . 48 16 30 . . 19 85 Melee 15 | . . . 6 . . . . 9 Ram . | . . . . . . . . . Kick 16 | . . 2 1 . 4 . . 9 Crush . | . . . . . . . . . Escape Stasis 39 | . . . . 34 . . 5 . Rewire 14 | . . . . 14 . . . . Trap . | . . . . . . . . . Miscellaneous . | . . . . . . . . . Route ------- -11/Scrapyard -10/Materials -9/Materials (discovered 3 exits: Min x2 / *Sto) -9/Storage (discovered 3 exits: [*Mat] / *Rec / Gar) -9/Garrison (discovered 3 exits: *Rec x3) -9/Recycling -7/Factory -7/DSF -6/Factory (discovered 1 exit: [*Low]) History --------- Turn | Location | Event 3 | -11/Scrapyard | Discovered new exit (range 15) 66 | -11/Scrapyard | Entered Materials 188 | -10/Materials | Discovered new exit (range 8) 195 | -10/Materials | Entered another Materials area 195 | -9/Materials | Evolved 2 slots: Utility x2 209 | -9/Materials | Identified exit to Mines 209 | -9/Materials | Identified exit to Storage 334 | -9/Materials | Build established: Mutant 580 | -9/Materials | Destroyed 7 combat bots 770 | -9/Materials | Entered Storage 785 | -9/Storage | Met 01-MTF 952 | -9/Storage | Repaired Lgt. Armor Plating 1465 | -9/Storage | Garrison activated, responded to threat 1573 | -9/Storage | Learned location of Armory (-4) 1653 | -9/Storage | Discovered new exit (range 16) 2004 | -9/Storage | Used back door to open Recycling access 2004 | -9/Storage | Discovered new exit (range 4) 2167 | -9/Storage | Identified exit to Garrison 2184 | -9/Storage | Entered Garrison 2184 | -9/Garrison | Accompanied by 1 ally (01-MTF) 2187 | -9/Garrison | 01-MTF left 2374 | -9/Garrison | Triggered checkpoint 2499 | -9/Garrison | Discovered new exit (range 14) 2510 | -9/Garrison | Phase Generator disabled 2511 | -9/Garrison | Core integrity fell below 50% 2754 | -9/Garrison | Triggered checkpoint 2830 | -9/Garrison | Discovered new exit (range 10) 2905 | -9/Garrison | Lost 3 parts (1n2u) 2929 | -9/Garrison | Rescued AZ-K3N 2984 | -9/Garrison | Core integrity fell below 20% 3206 | -9/Garrison | Triggered checkpoint 3247 | -9/Garrison | Build established: Scavenger-Mutant 3310 | -9/Garrison | Triggered checkpoint 3358 | -9/Garrison | Triggered checkpoint 3562 | -9/Garrison | Installed Relay Interface Framework 3588 | -9/Garrison | Triggered checkpoint 3624 | -9/Garrison | Discovered new exit (range 11) 3648 | -9/Garrison | Entered Recycling 3648 | -9/Recycling | Accompanied by 2 allies 3851 | -9/Recycling | Build established: Bothacker-Mutant 4272 | -9/Recycling | Discovered new exit (range 16) 4338 | -9/Recycling | Entered Factory 4338 | -7/Factory | Accompanied by 2 allies 4338 | -7/Factory | Evolved 4 slots: Power x1, Propulsion x1, Utility x2 4342 | -7/Factory | Identified exit to DSF 4345 | -7/Factory | Entered DSF 4345 | -7/DSF | Accompanied by 2 allies 4371 | -7/DSF | Additional patrols routed to DSF 4511 | -7/DSF | Discovered new exit (range 16) 4667 | -7/DSF | Sterilization system engaged 4685 | -7/DSF | Entered Factory 4685 | -6/Factory | Accompanied by 1 ally 4685 | -6/Factory | Evolved 2 slots: Utility x1, Weapon x1 4793 | -6/Factory | Garrison activated, responded to threat 4834 | -6/Factory | Lost 3 parts (1p1u1w) 4939 | -6/Factory | Discovered new exit (range 12) 5865 | -6/Factory | Cargo convoy interrupted 5873 | -6/Factory | Core integrity fell below 50% 5887 | -6/Factory | Core integrity fell below 20% 5888 | -6/Factory | System corruption reached 10% 5890 | -6/Factory | Destroyed by H-66 Slayer with Gauss Rifle Last Messages --------------- 05881_ Slug penetrates Wall. 05882_ Penetrated by Slug. 05882_ Hpw. Shock Rifle destroyed. 05883_ Slug penetrates Wall. 05883_ Hpw. Shock Rifle destroyed. 05884_ Dropped Flexi-carbon Leg. 05885_ Dropped Authchip [Propulsion]. 05885_ Dropped Authchip [Device]. 05885_ K-01 Serf collects debris. 05886_ Dropped Authchip [Processor]. 05886_ U-05 Engineer lays Concrete. 05886_ Penetrated by Slug. 05886_ U-05 Engineer destroyed. 05886_ Dropped Lrg. Storage Unit. 05887_ Slug penetrates Wall. 05887_ Dropped Lyr. Light Armor Plating. 05887_ Slug penetrates Wall. 05888_ P-60 Hacker resets H-66 Slayer, system corruption cleaned. 05888_ K-01 Serf collects debris. Map ----- +----------------------------------------------------+ | #????????# #??##+##??????????????? | | +################# #??# #??????????????? | | ==" # #??# +??????????????? | | * #*"""" """" # +?? #??????????????? | | [# """" """" # !** #??# #??????????????? | | # """" """" # * #??# #??????????????? | | # """" """" # ** #??# #?????????? " | | # # #??# #?????????? | | ###+#############+#######??# +?????????? | | #?????#^^^#?????????? ? | | #????## ##????????? #? | | """ ##?### #????????? #? | | """"" ###### =#????????? #? | | """"" *! =! < #?######## #? | | #########+#+####+### #?# """"" #? | | """ T#?# # #?# ""T"" #? | | """"" #?# ! ###+###?# #? | | """"" ##?# ##??????# """ #? | | #??# ##??????# """ ##? | | """ #??# #???????# """ #?? | | """ " #??# #???????# """ #?? | | """ ##?# #???????# #?? | | % ##?# #???????# """ #?? | | "" #??# #???????# """ #?? | | """" % #??# * #???????# """ ### | | """ % % %#?##+##########@#####??????# %%" | | = #?#"[*## !######## * | | % "" #?## "## !! !%/=| [% | | """"" #??#=### !=!* *######## %| = * | | """"" #### ### !==[%! #??????# * % = % | | %!!= %!!= #??????##% ######## | | h%h !! #???????# # *# | | h[%! #???????# # [][%+ | | xk!p #???????+ # =%# | | % p #???????# # [[|# | | ""########## #???????## ## / !# | | ""#???????# #????????# ## # | | #?????????# # #????????# ## # | | ??????????# ##############????????# ## =! " # | | #####?????# #?????????????????????# ## [ ""# | | ?????# #?????????????????????# ##[ [ S"# | | """ "????# """"#?????????????????????# ##! =!""# | | """ """??# """"#?????????????????????? ?#!!=! "# | | """ """??# """"#?????????????????????? ?#|!%=% # | | ???# """"#?????????????????????? ?###/## # | | """ "????# """"#??????????????????????????# !### | | """ "????# ?"""???????????????????????????" "#?# | | """ "????# ???????????????????????????????#+##?# | | ???# ???????????????????????????????? ??# | | ?# ????????????????????????????????? ??# | +----------------------------------------------------+ Best States ------------- Heat Dissipation 56 Energy Generation 32 Energy Capacity 690 Matter Stores 300 Matter Capacity 300 Sight Range 16 Robot Scan Range 14 Terrain Scan Density 10 Armor Coverage 300 Phase Shifting 5 Evasion (%) 60 Target Analysis 5 Recoil Reduction 2 Relay Coupler Types 3 Relay Coupler Value 73 Authchip Count 3 Item Schematics ----------------- None Robot Schematics ------------------ None Fabricated ------------ Nothing Repaired ---------- Lgt. Armor Plating | 33% | -9/Storage Studied --------- None Alien Tech Used ----------------- None Achievements -------------- Deductive Reasoning Challenges ------------ None Game ------ Seed ShadingLongswordTurretformer Manual? 0 Play Time 00:56:53 Cumulative 51.7 hours Start 2026.09.02 @ 01:57:16 End 2026.09.02 @ 02:52:05 Sessions 1 Manual Loads 0 Difficulty Rogue Special Mode None Game No. 76 Rogue 76 Adventurer 0 Explorer 0 Win Type - Total 0 Types 0/0/0/0/0/0/0/0/0/0 Lore% 33 Gallery% 34 Achievement% 30 Wizard Run 0 Options --------- Layout 1 ASCII 0 Keyboard 0 Movement Mouse Keybinds 0 Fullscreen 2 Font 24/Smallcaps Map View 50x35 Zoom Use 0% Tactical HUD 1 Map Filters NONE Filters NONE Steam 1 RUN: 1c996be8-8dd2-4689-9a09-9d5106a71821